fUST/lending_fUST_20251203
["ID","MTS","AMOUNT","RATE_DAILY","PERIOD"]
[396121417,1764756632562,-263.1584114,0.00019802,2]
[396121418,1764756632571,-300.0,0.00019807,10]
[396121419,1764756632580,-300.0,0.00019807,10]
[396121420,1764756632589,-300.0,0.00019807,10]
[396121421,1764756632598,-300.0,0.00019807,10]
[396121422,1764756632608,-300.0,0.00019807,10]
[396121423,1764756632617,-300.0,0.00019807,10]
[396121424,1764756632627,-300.0,0.00019807,10]
[396121425,1764756632636,-300.0,0.00019807,10]
[396121426,1764756632646,-300.0,0.00019807,10]
[396121427,1764756632655,-300.0,0.00019807,10]
[396121428,1764756632665,-300.0,0.00019807,10]
[396121429,1764756632675,-300.0,0.00019807,10]
[396121430,1764756632686,-300.0,0.00019807,10]
[396121431,1764756632695,-300.0,0.00019807,10]
[396121432,1764756632705,-300.0,0.00019807,10]
[396121433,1764756632715,-7000.0,0.000199,2]
[396121434,1764756632724,-1010.24674,0.00020187,2]
[396121435,1764756632734,-350.0,0.00020274,2]
[396121436,1764756632746,-333.0,0.00020343,2]
[396121437,1764756632756,-333.0,0.00020343,2]
[396121438,1764756632770,-333.0,0.00020343,2]
[396121439,1764756632779,-333.0,0.00020343,2]
[396121440,1764756632790,-333.0,0.00020343,2]
[396121441,1764756632800,-333.0,0.00020343,2]
[396121442,1764756632811,-478.65619189,0.00020343,2]
[396121443,1764756632820,-450.0,0.00020822,2]
[396121444,1764756632830,-36596.93,0.0002098,10]
[396121445,1764756632840,-30497.44,0.0002098,10]
[396121446,1764756632852,-66683.64923326,0.0002099,2]
[396121447,1764756632862,-293.06332015,0.00021033,2]
[396121448,1764756632871,-223.05617907,0.00021133,2]
[396121449,1764756632880,-5013.92174006,0.00021133,2]
[396121450,1764756632890,-710.96608529,0.00021133,2]
[396121451,1764756632899,-5199.43684444,0.00021188,2]
[396121452,1764756632909,-3780.2613615,0.0002119,2]
[396121453,1764756632919,-5391.81600769,0.00021243,2]
[396121454,1764756632937,-5591.31319997,0.00021298,2]
[396121455,1764756632948,-500.0,0.00021298,2]
[396121456,1764756632964,-231.0,0.00021303,2]
[396121457,1764756632977,-5798.19178837,0.00021353,2]
[396121458,1764756632987,-550.0,0.0002137,2]
[396121459,1764756632996,-753.43363557,0.00021408,2]
[396121498,1764756638889,-150.0,0.00014998,2]
[396121500,1764756638899,-384.94906441,0.00019726,2]
[396121503,1764756638912,-553.19985832,0.00019726,2]
[396121678,1764756640829,-3000.067605,0.00019726,2]
[396121684,1764756640885,-2428.92,0.00019726,2]
[396126596,1764757263125,250.0,0.0002,30]
[396127610,1764757832567,-150.0,0.00014631,2]
[396127612,1764757832577,-150.0,0.00014779,2]
[396127613,1764757832587,-168.0,0.00014904,3]
[396127614,1764757832598,-150.0,0.00014929,2]
[396127616,1764757832607,-274.0,0.00014929,2]
[396127617,1764757832616,-81.57,0.00016929,2]
[396127619,1764757832627,-95.43,0.00016929,2]
[396127620,1764757832637,-169.72233631,0.00017196,2]
[396127621,1764757832647,-829.0,0.00018678,2]
[396127623,1764757832656,-17.99147643,0.00018679,2]
[396127624,1764757832667,-2782.094928,0.00018679,2]
[396127626,1764757832679,-256.5916681,0.00018679,2]
[396127627,1764757832690,-13000.0,0.00018679,2]
[396127800,1764757837779,-1124.37583798,0.00018492,2]
[396127802,1764757837792,-178.67132053,0.00018492,2]
[396127803,1764757837801,-300.0,0.00018679,10]
[396127804,1764757837811,-138.99934029,0.00018679,10]
[396127806,1764757837836,-161.00065971,0.00018679,10]
[396127808,1764757837846,-300.0,0.00018679,10]
[396127809,1764757837855,-300.0,0.00018679,10]
[396127810,1764757837864,-13.48066958,0.00018679,10]
[396127813,1764757837892,-286.51933042,0.00018679,10]
[396127814,1764757837911,-300.0,0.00018679,10]
[396127816,1764757837923,-300.0,0.00018679,10]
[396127817,1764757837933,-300.0,0.00018679,10]
[396127819,1764757837943,-300.0,0.00018679,10]
[396127820,1764757837953,-300.0,0.00018679,10]
[396127821,1764757837962,-300.0,0.00018679,10]
[396127823,1764757837973,-300.0,0.00018679,10]
[396127824,1764757837983,-300.0,0.00018679,10]
[396127826,1764757837993,-300.0,0.00018679,10]
[396127827,1764757838003,-300.0,0.00018679,10]
[396127828,1764757838013,-1000.0,0.00018686,2]
[396127830,1764757838023,-204.0,0.00018929,2]
[396127831,1764757838032,-346.97492544,0.00019064,2]
[396127832,1764757838042,-150.0,0.00019178,2]
[396127834,1764757838053,-250.0,0.00019726,2]
[396127835,1764757838063,-218.80787291,0.0002,2]
[396128012,1764757842944,-483.01223641,0.0002,2]
[396140342,1764758222552,250.0,0.0002,30]
[396140396,1764759031919,-232.0,9.691e-05,2]
[396140398,1764759031929,-231.0,9.789e-05,2]
[396140399,1764759031939,-150.0,9.864e-05,2]
[396140400,1764759031948,-351.1050055,0.00010191,2]
[396140401,1764759031960,-512.08208021,0.00010191,2]
[396140402,1764759031971,-308.09929999,0.00010191,2]
[396140403,1764759031982,-426.34100583,0.00010191,2]
[396140404,1764759031997,-367.73420147,0.00010191,2]
[396140406,1764759032006,-169.80715506,0.00011486,2]
[396140407,1764759032015,-177.0,0.00011863,2]
[396140408,1764759032025,-909.222066,0.00013699,2]
[396140409,1764759032034,-204.0,0.00013864,2]
[396140410,1764759032043,-175.0,0.00014849,3]
[396140411,1764759032053,-231.0,0.00015864,2]
[396140412,1764759032062,-258.0,0.00017864,2]
[396140413,1764759032074,-205.09296178,0.00017936,2]
[396140414,1764759032084,-300.0,0.00017936,2]
[396140415,1764759032094,-708.18390052,0.00017937,2]
[396140416,1764759032106,-1466.98314437,0.00017937,2]
[396140446,1764759037973,-889.62,0.00017937,2]
[396140452,1764759038027,-314.4785267,0.00017937,2]
[396140455,1764759038039,-8518.19901842,0.00017937,2]
[396140457,1764759038050,-412.0,0.00017937,2]
[396140461,1764759038082,-18331.89432605,0.00017937,2]
[396140463,1764759038092,-300.0,0.0001845,2]
[396140465,1764759038101,-300.0,0.0001845,2]
[396140467,1764759038111,-300.0,0.0001845,2]
[396140469,1764759038120,-300.0,0.0001845,2]
[396140471,1764759038130,-300.0,0.0001845,2]
[396140473,1764759038139,-300.0,0.0001845,2]
[396140475,1764759038148,-300.0,0.0001845,2]
[396140477,1764759038158,-300.0,0.0001845,2]
[396140479,1764759038167,-300.0,0.0001845,2]
[396140481,1764759038177,-300.0,0.0001845,2]
[396140483,1764759038187,-300.0,0.0001845,2]
[396140485,1764759038196,-300.0,0.0001845,2]
[396140487,1764759038206,-300.0,0.0001845,2]
[396140489,1764759038215,-300.0,0.0001845,2]
[396140491,1764759038225,-300.0,0.0001845,2]
[396140493,1764759038235,-600.0,0.00018818,10]
[396140495,1764759038245,-150.0,0.00019178,2]
[396140497,1764759038254,-2257.70527395,0.00019516,2]
[396140652,1764759040029,-925.05910245,0.00019516,2]
[396140654,1764759040039,-250.0,0.00019726,2]
[396140656,1764759040048,-285.0,0.00019864,2]
[396140658,1764759040058,-16250.7604863,0.0002,2]
[396140660,1764759040068,-909.222066,0.00020187,2]
[396140662,1764759040077,-350.0,0.00020274,2]
[396140664,1764759040087,-720.0,0.000207,10]
[396140666,1764759040096,-450.0,0.00020822,2]
[396140668,1764759040105,-155.13013462,0.000211,2]
[396140670,1764759040115,-277.821,0.00021148,15]
[396140672,1764759040125,-771.0,0.000212,2]
[396140674,1764759040135,-550.0,0.0002137,2]
[396140676,1764759040144,-166.0,0.00021408,2]
[396140678,1764759040154,-160.0,0.00021425,4]
[396140680,1764759040163,-3182.7643764,0.00021557,2]
[396140682,1764759040172,-265.48555864,0.00021818,2]
[396140684,1764759040182,-312.0,0.00021864,2]
[396140686,1764759040191,-151.0,0.00021874,2]
[396140688,1764759040201,-226.48263279,0.00021874,2]
[396140691,1764759040210,-151.0,0.00021874,2]
[396140693,1764759040220,-151.0,0.00021874,2]
[396140695,1764759040230,-151.0,0.00021874,2]
[396140697,1764759040239,-151.0,0.00021874,2]
[396140698,1764759040248,-285.72085175,0.00021874,2]
[396140701,1764759040257,-151.0,0.00021874,2]
[396140702,1764759040269,-151.0,0.00021874,2]
[396140705,1764759040279,-500.0,0.00021874,2]
[396140707,1764759040289,-151.0,0.00021874,2]
[396140709,1764759040298,-151.0,0.00021874,2]
[396140711,1764759040307,-151.0,0.00021874,2]
[396140713,1764759040318,-246.9389776,0.00021874,2]
[396140714,1764759040327,-151.07511018,0.00021874,2]
[396140717,1764759040336,-293.06332015,0.000219,2]
[396140719,1764759040347,-635.83218084,0.00021918,2]
[396140721,1764759040356,-150.0,0.00021918,2]
[396140723,1764759040367,-500.0,0.00021918,2]
[396140725,1764759040376,-651.61077343,0.00021918,2]
[396140727,1764759040386,-281.0,0.0002197,120]
[396140729,1764759040396,-281.0,0.0002198,120]
[396140731,1764759040405,-25414.53,0.0002199,10]
[396140733,1764759040415,-281.0,0.0002199,120]
[396140735,1764759040425,-574.90269209,0.00021999,2]
[396140737,1764759040434,-35206.60073676,0.00022,2]
[396140739,1764759040445,-34834.77534147,0.00022,2]
[396140741,1764759040456,-4926.51814271,0.00022,2]
[396140874,1764759043071,-388.44326117,0.00022,2]
[396140886,1764759043177,-476.59,0.00022,2]
[396140902,1764759043338,-1158.63077934,0.00022,2]
[396141176,1764759046174,-1897.14749613,0.0002199,10]
[396147339,1764759123359,250.0,0.0002,30]
[396147391,1764759452681,3370.92433627,0.0001475,19]
[396148909,1764760082791,250.0,0.0002,30]
[396149686,1764760231966,-446.0,0.00017121,2]
[396149688,1764760231975,-150.0,0.00017208,2]
[396149690,1764760231985,-17.20888061,0.00017294,2]
[396149946,1764760240338,-278.79111939,0.00017121,2]
[396149948,1764760240348,-278.79111939,0.00017294,2]
[396149950,1764760240357,-346.97492544,0.00017757,2]
[396149952,1764760240366,-1000.0,0.00018,2]
[396149954,1764760240375,-315.79198529,0.00018027,3]
[396149956,1764760240384,-300.0,0.00018359,2]
[396149958,1764760240394,-300.0,0.00018359,2]
[396149960,1764760240403,-300.0,0.00018359,2]
[396149962,1764760240412,-300.0,0.00018359,2]
[396149964,1764760240421,-300.0,0.00018359,2]
[396149966,1764760240431,-300.0,0.00018359,2]
[396149968,1764760240440,-300.0,0.00018359,2]
[396149970,1764760240449,-300.0,0.00018359,2]
[396149972,1764760240459,-300.0,0.00018359,2]
[396149974,1764760240468,-300.0,0.00018359,2]
[396149976,1764760240477,-300.0,0.00018359,2]
[396149978,1764760240487,-300.0,0.00018359,2]
[396149980,1764760240496,-300.0,0.00018359,2]
[396149982,1764760240506,-300.0,0.00018359,2]
[396149984,1764760240516,-300.0,0.00018359,2]
[396149986,1764760240525,-600.0,0.00018725,10]
[396149988,1764760240535,-1000.0,0.00019116,2]
[396149990,1764760240545,-150.0,0.00019178,2]
[396149992,1764760240555,-177.0,0.00019208,2]
[396149994,1764760240564,-250.0,0.00019726,2]
[396149996,1764760240573,-160.0,0.00019783,2]
[396149998,1764760240583,-350.0,0.00020274,2]
[396150000,1764760240592,-260.0,0.00020331,2]
[396150002,1764760240602,-720.0,0.00020598,10]
[396150004,1764760240612,-450.0,0.00020822,2]
[396150006,1764760240621,-360.0,0.00020879,2]
[396150008,1764760240631,-500.0,0.00021,2]
[396150010,1764760240640,-500.0,0.00021,2]
[396150012,1764760240649,-339.56917066,0.00021,10]
[396150511,1764760246272,-160.43082934,0.00021,10]
[396150513,1764760246286,-500.0,0.00021,2]
[396150515,1764760246296,-500.0,0.00021,2]
[396150517,1764760246308,-500.0,0.00021,2]
[396150519,1764760246321,-500.0,0.00021,10]
[396150521,1764760246333,-500.0,0.00021,2]
[396150523,1764760246344,-500.0,0.00021,2]
[396150526,1764760246356,-500.0,0.00021,2]
[396150528,1764760246368,-500.0,0.00021,10]
[396150530,1764760246381,-500.0,0.00021,2]
[396150532,1764760246392,-160.77592081,0.000211,2]
[396150534,1764760246404,-150.53959629,0.000211,2]
[396150536,1764760246416,-340.36882868,0.000211,2]
[396150539,1764760246428,-155.13013464,0.000211,2]
[396150541,1764760246441,-155.13013463,0.000211,2]
[396150543,1764760246453,-340.36882868,0.00021188,5]
[396150545,1764760246464,-204.0,0.00021208,2]
[396150547,1764760246476,-340.36882868,0.00021276,9]
[396150549,1764760246488,-293.06332015,0.00021357,2]
[396150551,1764760246499,-340.36882868,0.00021364,13]
[396150553,1764760246510,-265.48555864,0.00021364,2]
[396150555,1764760246522,-550.0,0.0002137,2]
[396150557,1764760246535,-460.0,0.00021427,2]
[396150559,1764760246547,-151.0,0.00021447,10]
[396150561,1764760246558,-226.48263279,0.00021447,10]
[396150563,1764760246569,-151.0,0.00021447,10]
[396150565,1764760246580,-151.0,0.00021447,10]
[396150567,1764760246590,-151.0,0.00021447,10]
[396150569,1764760246601,-151.0,0.00021447,10]
[396150571,1764760246611,-285.72085175,0.00021447,10]
[396150573,1764760246622,-346.97492544,0.00021447,10]
[396150576,1764760246633,-340.36882868,0.00021452,16]
[396150578,1764760246644,-668.91,0.00021455,2]
[396150580,1764760246657,-668.91,0.00021455,3]
[396150582,1764760246671,-668.91,0.00021455,4]
[396150584,1764760246683,-668.91,0.00021456,5]
[396150586,1764760246696,-668.91,0.00021456,6]
[396150588,1764760246710,-668.91,0.00021456,7]
[396150591,1764760246724,-668.91,0.00021456,8]
[396150593,1764760246738,-668.91,0.00021456,9]
[396150595,1764760246755,-668.91,0.00021456,10]
[396150597,1764760246766,-668.91,0.00021456,11]
[396150599,1764760246776,-668.91,0.00021456,12]
[396150601,1764760246787,-668.91,0.00021456,13]
[396150603,1764760246797,-668.91,0.00021456,14]
[396150605,1764760246808,-668.91,0.00021456,15]
[396150607,1764760246820,-668.91,0.00021456,16]
[396150609,1764760246833,-668.91,0.00021456,17]
[396150611,1764760246845,-668.91,0.00021456,18]
[396150614,1764760246858,-22.97608424,0.00021456,19]
[396150617,1764760246884,-645.93391576,0.00021456,19]
[396150619,1764760246895,-668.91,0.00021456,20]
[396150621,1764760246907,-668.91,0.00021456,21]
[396150623,1764760246920,-668.91,0.00021456,21]
[396150625,1764760246930,-668.91,0.00021456,21]
[396150627,1764760246943,-668.91,0.00021456,21]
[396150629,1764760246954,-668.99255939,0.00021456,21]
[396150631,1764760246967,-151.0,0.00021457,2]
[396150633,1764760246978,-166.574227,0.00021457,2]
[396150635,1764760246991,-246.9389776,0.00021457,2]
[396150637,1764760247002,-151.07511018,0.00021457,2]
[396150639,1764760247012,-151.0,0.00021457,2]
[396150641,1764760247023,-151.0,0.00021457,2]
[396150643,1764760247035,-500.0,0.00021457,2]
[396150645,1764760247046,-151.0,0.00021457,2]
[396150647,1764760247057,-151.0,0.00021457,2]
[396150649,1764760247068,-151.0,0.00021457,2]
[396150651,1764760247079,-151.0,0.00021457,2]
[396150653,1764760247090,-150.53959629,0.00021464,17]
[396150655,1764760247101,-265.4855586,0.00021498,2]
[396150657,1764760247112,-2093.28,0.000215,2]
[396150659,1764760247123,-771.0,0.000215,2]
[396150661,1764760247135,-340.36882868,0.0002154,20]
[396150663,1764760247146,-151.0,0.00021584,10]
[396150665,1764760247158,-151.0,0.00021584,10]
[396150667,1764760247170,-151.0,0.00021584,10]
[396150671,1764760247197,-151.0,0.00021584,10]
[396150673,1764760247216,-170.02021702,0.00021584,10]
[396150675,1764760247232,-151.0,0.00021594,2]
[396150677,1764760247248,-151.0,0.00021594,2]
[396150679,1764760247265,-500.0,0.00021594,2]
[396150682,1764760247280,-271.16851832,0.00021594,2]
[396150684,1764760247299,-151.0,0.00021594,2]
[396150686,1764760247316,-152.51806869,0.00021594,2]
[396150688,1764760247333,-151.0,0.00021594,2]
[396150691,1764760247347,-164.4048203,0.00021616,7]
[396150693,1764760247363,-340.36882868,0.00021628,24]
[396150695,1764760247378,-265.4855586,0.00021632,2]
[396150698,1764760247393,-3227.0939437,0.00021646,2]
[396150700,1764760247408,-340.36882868,0.00021716,28]
[396150702,1764760247421,-151.0,0.00021721,10]
[396150704,1764760247434,-500.0,0.00021731,2]
[396150706,1764760247448,-151.0,0.00021731,2]
[396150709,1764760247461,-199.42951541,0.00021731,2]
[396150711,1764760247474,-265.4855586,0.00021766,2]
[396150713,1764760247485,-479.39,0.000218,2]
[396150715,1764760247497,-340.36882868,0.00021804,31]
[396150716,1764760247508,-150.53959629,0.00021829,32]
[396150718,1764760247520,-198.0,0.00021858,10]
[396150720,1764760247533,-500.0,0.00021868,2]
[396150721,1764760247544,-151.0,0.00021868,2]
[396150723,1764760247556,-326.0,0.00021888,120]
[396150726,1764760247567,-340.36882868,0.00021892,35]
[396150728,1764760247579,-326.0,0.00021898,120]
[396150730,1764760247590,-265.4855586,0.000219,2]
[396150732,1764760247603,-326.0,0.00021908,120]
[396150734,1764760247615,-605.194053,0.00021918,2]
[396150736,1764760247627,-605.194053,0.00021918,2]
[396150738,1764760247638,-605.194053,0.00021918,2]
[396150740,1764760247649,-605.194053,0.00021918,2]
[396150743,1764760247664,-150.0,0.00021918,2]
[396150745,1764760247675,-650.0,0.00021918,2]
[396150747,1764760247687,-500.0,0.00021918,2]
[396150749,1764760247700,-651.61077343,0.00021918,2]
[396150750,1764760247712,-560.0,0.00021975,2]
[396150752,1764760247723,-340.36882868,0.0002198,39]
[396150754,1764760247736,-14524.5,0.0002198,10]
[396150756,1764760247747,-6938.21157049,0.00021984,10]
[396150943,1764761037124,5000.0,0.0001401,9]
[396150944,1764761042737,250.0,0.0002,30]
[396150945,1764761060562,2431.81979621,0.0001401,9]
[396151024,1764761432181,-936.246803,0.00013699,2]
[396151026,1764761432193,-263.0,0.00013699,2]
[396151028,1764761432203,-150.0,0.00014119,2]
[396151030,1764761432212,-40.38832218,0.00014685,3]
[396151318,1764761440670,-130.61167782,0.00014685,3]
[396151320,1764761440679,-719.08694112,0.00015481,2]
[396151322,1764761440688,-177.0,0.00016119,2]
[396151324,1764761440697,-501.20392721,0.00016614,2]
[396151326,1764761440707,-504.57063088,0.0001787,2]
[396151328,1764761440715,-204.0,0.00018119,2]
[396151330,1764761440725,-256.725949,0.00019156,2]
[396151332,1764761440734,-150.0,0.00019178,2]
[396151334,1764761440743,-250.0,0.00019726,2]
[396151336,1764761440752,-231.0,0.00020119,2]
[396151338,1764761440763,-936.246803,0.00020187,2]
[396151339,1764761440773,-350.0,0.00020274,2]
[396151342,1764761440783,-4835.02578598,0.00020746,2]
[396151343,1764761440792,-2449.72057655,0.00020746,2]
[396151344,1764761440801,-5013.92174006,0.00020801,2]
[396151345,1764761440810,-450.0,0.00020822,2]
[396151346,1764761440818,-5199.43684444,0.00020856,2]
[396151347,1764761440827,-346.97492544,0.00020867,2]
[396151348,1764761440837,-1450.17149755,0.00020911,2]
[396151801,1764761445611,-504.14,0.00020911,2]
[396151804,1764761445630,-352.23741087,0.00020911,2]
[396151806,1764761445641,-3085.26709927,0.00020911,2]
[396151808,1764761445650,-1604.81388584,0.00020966,2]
[396151892,1764761446436,-421.4335567,0.00020966,2]
[396151894,1764761446446,-226.0,0.00020999,2]
[396151896,1764761446455,-5706.24097666,0.00021,5]
[396151898,1764761446464,-159.99999901,0.00021,10]
[396151900,1764761446474,-794.19393359,0.000211,2]
[396151902,1764761446483,-327.54100082,0.000211,2]
[396151904,1764761446492,-1289.75091149,0.000211,2]
[396151907,1764761446512,-345.27915987,0.00021244,2]
[396151909,1764761446521,-250.0,0.00021244,2]
[396151911,1764761446530,-500.0,0.00021244,2]
[396151913,1764761446540,-11714.56046186,0.00021257,2]
[396151915,1764761446554,-26000.0,0.00021257,2]
[396154091,1764762002696,250.0,0.0002,30]
[396154115,1764762632375,-155.0,0.00014603,3]
[396154116,1764762632384,-276.0,0.00015137,2]
[396154117,1764762632394,-92.62687799,0.00015137,2]
[396154148,1764762640512,-57.37312201,0.00015137,2]
[396154149,1764762640522,-346.97492544,0.00016529,2]
[396154151,1764762640532,-177.0,0.00017137,2]
[396154153,1764762640545,-204.0,0.00019137,2]
[396154155,1764762640555,-150.0,0.00019178,2]
[396154157,1764762640564,-250.0,0.00019726,2]
[396154159,1764762640573,-350.0,0.00020274,2]
[396154161,1764762640582,-202.886491,0.00020512,2]
[396154163,1764762640591,-450.0,0.00020822,2]
[396154165,1764762640600,-896.60888327,0.00021086,2]
[396154425,1764762643701,-1867.39630534,0.00021086,2]
[396154427,1764762643713,-338.3373185,0.00021086,2]
[396155416,1764762962555,250.0,0.0002,30]
[396158344,1764763846410,-274.0,0.00021888,120]
[396158348,1764763846437,-274.0,0.00021898,120]
[396158352,1764763846463,-274.0,0.00021908,120]
[396158355,1764763846491,-500.0,0.00021918,120]
[396158360,1764763846523,-159.93,0.00022,120]
[396158364,1764763846551,-263.97186027,0.000233,120]
[396158368,1764763846577,-500.0,0.0002365,120]
[396158371,1764763846601,-500.0,0.0002365,120]
[396158375,1764763846626,-500.0,0.0002365,120]
[396158378,1764763846650,-500.0,0.0002365,120]
[396158382,1764763846674,-500.0,0.0002365,120]
[396158386,1764763846699,-500.0,0.0002365,120]
[396158389,1764763846723,-500.0,0.0002365,120]
[396158393,1764763846747,-500.0,0.0002365,120]
[396158396,1764763846775,-500.0,0.0002365,120]
[396158400,1764763846799,-500.0,0.0002365,120]
[396158404,1764763846825,-500.0,0.0002365,120]
[396158407,1764763846849,-500.0,0.0002365,120]
[396158411,1764763846874,-500.0,0.0002365,120]
[396158414,1764763846899,-500.0,0.0002365,120]
[396158418,1764763846923,-500.0,0.0002365,120]
[396158422,1764763846948,-500.0,0.0002365,120]
[396158425,1764763846972,-500.0,0.0002365,120]
[396158429,1764763846996,-500.0,0.0002365,120]
[396158432,1764763847020,-500.0,0.0002365,120]
[396158436,1764763847043,-500.0,0.0002365,120]
[396158439,1764763847067,-500.0,0.0002365,120]
[396158443,1764763847092,-500.0,0.0002365,120]
[396158446,1764763847117,-500.0,0.0002365,120]
[396158450,1764763847142,-500.0,0.0002365,120]
[396158454,1764763847166,-500.0,0.0002365,120]
[396158457,1764763847192,-500.0,0.0002365,120]
[396158460,1764763847217,-500.0,0.0002365,120]
[396158464,1764763847242,-500.0,0.0002365,120]
[396158467,1764763847267,-500.0,0.0002365,120]
[396158471,1764763847291,-500.0,0.0002365,120]
[396158475,1764763847316,-500.0,0.0002365,120]
[396158478,1764763847341,-500.0,0.0002365,120]
[396158482,1764763847367,-500.0,0.0002365,120]
[396158485,1764763847393,-500.0,0.0002365,120]
[396158489,1764763847419,-500.0,0.0002365,120]
[396158493,1764763847443,-500.0,0.0002365,120]
[396158496,1764763847467,-500.0,0.0002365,120]
[396158500,1764763847491,-500.0,0.0002365,120]
[396158504,1764763847516,-500.0,0.0002365,120]
[396158507,1764763847540,-500.0,0.0002365,120]
[396158533,1764763847771,-500.0,0.0002365,120]
[396158537,1764763847798,-500.0,0.0002365,120]
[396158540,1764763847824,-500.0,0.0002365,120]
[396158544,1764763847849,-500.0,0.0002365,120]
[396158548,1764763847874,-500.0,0.0002365,120]
[396158551,1764763847899,-500.0,0.0002365,120]
[396158555,1764763847924,-500.0,0.0002365,120]
[396158559,1764763847951,-500.0,0.0002365,120]
[396158562,1764763847979,-500.0,0.0002365,120]
[396158566,1764763848009,-500.0,0.0002365,120]
[396158569,1764763848034,-500.0,0.0002365,120]
[396158573,1764763848059,-500.0,0.0002365,120]
[396158576,1764763848084,-500.0,0.0002365,120]
[396158580,1764763848109,-500.0,0.0002365,120]
[396158583,1764763848132,-500.0,0.0002365,120]
[396158587,1764763848162,-500.0,0.0002365,120]
[396158591,1764763848189,-500.0,0.0002365,120]
[396158594,1764763848215,-500.0,0.0002365,120]
[396158598,1764763848242,-500.0,0.0002365,120]
[396158602,1764763848267,-500.0,0.0002365,120]
[396158605,1764763848292,-500.0,0.0002365,120]
[396158608,1764763848317,-500.0,0.0002365,120]
[396158609,1764763848341,-500.0,0.0002365,120]
[396158610,1764763848365,-500.0,0.0002365,120]
[396158611,1764763848389,-500.0,0.0002365,120]
[396158612,1764763848414,-500.0,0.0002365,120]
[396158613,1764763848439,-500.0,0.0002365,120]
[396158614,1764763848463,-500.0,0.0002365,120]
[396158615,1764763848488,-500.0,0.0002365,120]
[396158616,1764763848510,-500.0,0.0002365,120]
[396158617,1764763848533,-500.0,0.0002365,120]
[396158618,1764763848557,-264.68,0.0002365,120]
[396158620,1764763848582,-500.0,0.0002365,120]
[396158623,1764763848607,-500.0,0.0002365,120]
[396158627,1764763848637,-500.0,0.00024658,120]
[396158632,1764763848670,-315.0,0.00025,120]
[396158635,1764763848694,-192.53149985,0.00025,120]
[396158639,1764763848719,-340.61393026,0.00025,120]
[396158643,1764763848748,-521.63530824,0.00025,120]
[396158647,1764763848773,-435.81577568,0.00025,120]
[396158651,1764763848800,-274.0,0.0002535,120]
[396158654,1764763848825,-274.0,0.0002536,120]
[396158658,1764763848852,-274.0,0.0002537,120]
[396158662,1764763848878,-443.62939944,0.00026,120]
[396158666,1764763848905,-500.0,0.00027,120]
[396158669,1764763848932,-550.0,0.000273,120]
[396158673,1764763848958,-297.53472739,0.00027397,120]
[396158677,1764763848983,-500.0,0.00027397,120]
[396158681,1764763849013,-400.0,0.00028,120]
[396158684,1764763849038,-274.0,0.0002838,120]
[396158688,1764763849062,-274.0,0.0002839,120]
[396158692,1764763849089,-200.0,0.000287,120]
[396158695,1764763849114,-844.80297,0.000287,120]
[396158699,1764763849142,-200.0,0.000287,120]
[396158703,1764763849167,-294.95705,0.000287,120]
[396158707,1764763849195,-200.0,0.000287,120]
[396158710,1764763849220,-200.0,0.000287,120]